[Event "Julius Baer Generation Cup Prelims 2022"]
[Site "Online"]
[Date "2022.09.14"]
[Round "10.1"]
[White "Giri, Anish"]
[Black "Niemann, Hans Moke"]
[Result "1-0"]
[ECO "A21"]
[WhiteElo "2764"]
[BlackElo "2688"]
[Annotator "TA"]
[PlyCount "81"]
[EventDate "2022.09.12"]
[EventType "tourn"]
[EventCountry "NET"]
[SourceTitle "playchess.com"]
[Source "ChessBase"]
[SourceQuality "1"]
[TimeControl "900+10"]

{[%evp 9,81,0,0,0,26,25,25,26,21,25,37,25,31,22,30,32,57,49,64,75,65,69,61,66,97,95,92,81,93,81,97,84,116,108,108,108,116,111,135,83,152,169,168,145,196,115,252,230,241,222,217,216,431,387,397,378,995,1000,997,983,2287,2287,2111,1585,2933,1810,1589,912,912,910,865,608,6199,6191]} 1. c4 {[%emt 0:00:00]} e5 {[%emt 0:00:00]} 2. Nc3 {[%emt 0:00:02]} Bb4 {[%emt 0:00:05]} 3. Qb3 {[%emt 0:00:03]} Nc6 {[%emt 0:00:49]} 4. e3 {[%emt 0:00:03]} Nf6 {[%emt 0:00:09]} 5. Nge2 {[%emt 0:00:02]} O-O {[%emt 0:00:26]} 6. a3 {[%emt 0:00:01] CPLX 2.2. A21: English Opening: 1...e5 2 Nc3.} Bxc3 {[%emt 0:01:41] CPLX 2.3 26 (Bb4-c5) (=13)} 7. Nxc3 {[%emt 0:00:01] [#] RECAPT} b6 $146 {[%emt 0:00:01] CPLX 2.0 0 (Rf8-e8) (=9)} ({Predecessor:} 7... Re8 8. d3 b6 9. Be2 Bb7 10. O-O d5 11. cxd5 Na5 12. Qc2 Nxd5 13. b4 Nxc3 14. Qxc3 {½-½ (65) Eljanov,P (2702)-Bologan,V (2672) Poikovsky 2013}) 8. Be2 {[%emt 0:00:08] CPLX 2.0. White has an edge.} Bb7 {[%emt 0:00:07] CPLX 2.0} 9. O-O {[%emt 0:00:01] BESTDEEP} e4 {[%emt 0:00:45] CPLX 2.1 12 (Rf8-e8) (=8)} 10. d3 {[%emt 0:01:00] CPLX 2.1 12 (d2-d4) (=2)} exd3 {[%emt 0:00:14] CPLX 2.3} 11. Bxd3 {[%emt 0:00:00] RECAPT} Ne5 {[%emt 0:00:01] EASY} 12. Be2 {[%emt 0:00:01] BESTDEEP} d6 {[%emt 0:02:24] CPLX 2.6 25 (Nf6-e4) (=8)} 13. Qc2 {[%emt 0:00:16] BESTDEEP} a5 {[%emt 0:00:10] CPLX 2.8 15 (Rf8-e8) (=9)} 14. b3 {[%emt 0:00:03] BESTDEEP} Re8 {[%emt 0:00:44] CPLX 2.8} 15. e4 {[%emt 0:00:51] CPLX 2.8 0 (Bc1-b2) (=1)} Ng6 {[%emt 0:03:36][%cal Rf6e4] CPLX 2.3 0 (Ne5-d7) (=7)} 16. f3 {[%emt 0:00:07] CPLX 2.3} Nh5 {[%emt 0:00:03] CPLX 2.1 31 (c7-c6) (=9)} 17. Rf2 {[%emt 0:01:58] CPLX 2.3 2 (g2-g3) (=1)} Nhf4 {[%emt 0:00:05] [#] CPLX 2.3} 18. Bf1 $1 {[%emt 0:00:02] CPLX 2.6} Ne6 {[%emt 0:00:11] CPLX 2.5 12 (Qd8-h4) (=9)} 19. Be3 {[%emt 0:00:11] CPLX 2.1} Qd7 {[%emt 0:00:39] CPLX 2.2 16 (Ne6-c5) (=9)} 20. Rd1 {[%emt 0:00:06] CPLX 2.2} f6 {[%emt 0:00:03] CPLX 2.3 32 (Qd7-d8) (=11)} 21. b4 {[%emt 0:00:15] CPLX 2.2} axb4 {[%emt 0:00:03] CPLX 2.4 0 (Ng6-e5) (=10)} 22. axb4 {[%emt 0:00:00][%cal Ba3b4,Bb4c5][%mdl 32] RECAPT} Qf7 {[%emt 0:00:01] CPLX 2.3 8 (Ng6-e5) (=10)} 23. f4 {[%emt 0:02:02] Black must now prevent f5. CPLX 2.2} Ne7 {[%emt 0:01:28] BESTDEEP} 24. f5 {[%emt 0:00:46] CPLX 2.3 52 (c4-c5) (=3)} (24. c5 $142 {aiming for Bc4.} bxc5 25. bxc5) 24... Nf8 {[%emt 0:00:04] CPLX 2.7 69 (Ne6-d8) (=12)} ({Black should play} 24... Nd8) 25. c5 $16 {[%emt 0:00:04] White is more active. CPLX 2.4} bxc5 {[%emt 0:00:35] CPLX 2.9} 26. bxc5 {[%emt 0:00:02] RECAPT} d5 {[%emt 0:00:06] CPLX 2.8 51 (Bb7-a6) (=14)} (26... Ba6 $16 {keeps fighting.} 27. cxd6 cxd6 28. Rxd6 Bxf1) 27. Nb5 {[%emt 0:03:38] CPLX 2.5 81 (Be3-f4) (=7)} (27. Bf4 $18) 27... Nc6 {[%emt 0:02:44] This move loses the game for Black. MISSDEEP-Bb7-c6 137 (Bb7-c6) (=19)} (27... Bc6 $16) 28. exd5 $18 {[%emt 0:02:25] BESTDEEP} ({Not} 28. Rxd5 Nb4 29. Qc1 Bxd5 30. exd5 Nxd5 $15) 28... Nb4 {[%emt 0:00:02] BESTDEEP} 29. Qc4 {[%emt 0:01:14] CPLX 3.1 19 (Qc2-c1) (=7)} Nxd5 {[%emt 0:00:05] CPLX 3.1} 30. Bf4 {[%emt 0:00:05] And now c6 would win. CPLX 3.0} Rad8 $2 {[%emt 0:01:45] CPLX 3.0 215 (Bb7-c6) (=25)} (30... Bc6 {is a better defense.} 31. Nxc7 Nxc7) 31. Rfd2 {[%emt 0:02:17] CPLX 3.0 44 (Bf4xc7) (=8)} c6 {[%emt 0:00:55] CPLX 3.0} 32. Nd6 {[%emt 0:00:05][%cal Bb5d6,Bd6e8,Be8f6,Bf6d5][%mdl 32] EASY} Qd7 {[%emt 0:00:03] EVAL 400 (Rd8xd6) (=37)} (32... Rxd6 33. cxd6 Kh8) 33. Rxd5 {[%emt 0:00:30] EVAL. White is clearly winning.} cxd5 {[%emt 0:00:04] EVAL} 34. Rxd5 {[%emt 0:00:00] EVAL} g5 {[%emt 0:00:11] BEVAL 400 (h7-h6) (=48)} 35. Nxe8 {[%emt 0:01:05] BEVAL} Bxd5 {[%emt 0:00:16] BEVAL} 36. Nxf6+ {[%emt 0:00:01] BEVAL} Kg7 {[%emt 0:00:12] BEVAL 400 (Kg8-f7) (=58)} 37. Qd4 {[%emt 0:00:52] BEVAL 400 (Qc4-c3) (=19)} Qxf5 {[%emt 0:00:01] BEVAL} 38. Nxd5+ {[%emt 0:00:08] EVAL 400 (Nf6-h5) (=31)} Kf7 {[%emt 0:00:04] EVAL} 39. Bd6 {[%emt 0:00:12] EVAL} Ne6 {[%emt 0:00:07] EVAL 0 (Rd8xd6) (=53)} 40. Qd1 {[%emt 0:00:03] CPLX 6.0 257 (Qd4-c4) (=36)} Ra8 {[%emt 0:00:30] [#] BEVAL 400 (Ne6xc5) (=62)} 41. Bd3 $1 {[%emt 0:00:37] Against Qe4.  Weighted Error Value: White=0.34/Black=0.29 (precise)} 1-0

[Event "Julius Baer Generation Cup Prelims 2022"]
[Site "Online"]
[Date "2022.09.14"]
[Round "10.2"]
[White "Aronian, Levon"]
[Black "Navara, David"]
[Result "0-1"]
[ECO "B90"]
[WhiteElo "2759"]
[BlackElo "2681"]
[Annotator "TA"]
[PlyCount "72"]
[EventDate "2022.09.12"]
[EventType "tourn"]
[EventCountry "NET"]
[SourceTitle "playchess.com"]
[Source "ChessBase"]
[SourceQuality "1"]
[TimeControl "900+10"]

{[%evp 24,72,29,0,0,0,0,0,8,7,22,0,0,0,0,0,0,0,0,-206,-149,-326,-346,-337,-331,-341,-353,-341,-345,-339,-348,-335,-331,-454,-459,-442,-437,-541,-539,-618,-611,-656,-647,-607,-592,-1075,-1026,-29967,-29965,-29956,-5343]} 1. e4 {[%emt 0:00:00]} c5 {[%emt 0:00:00]} 2. Nf3 {[%emt 0:00:02]} d6 {[%emt 0:00:02]} 3. d4 {[%emt 0:00:01]} cxd4 {[%emt 0:00:00]} 4. Nxd4 {[%emt 0:00:01]} Nf6 {[%emt 0:00:00]} 5. Nc3 {[%emt 0:00:01]} a6 {[%emt 0:00:01]} 6. f3 {[%emt 0:00:01]} e5 {[%emt 0:00:03]} 7. Nb3 {[%emt 0:00:00]} Be6 {[%emt 0:00:03]} 8. Be3 {[%emt 0:00:01]} Be7 {[%emt 0:00:00]} 9. Qd2 {[%emt 0:00:02]} O-O {[%emt 0:00:03]} 10. O-O-O {[%emt 0:00:02]} Nbd7 {[%emt 0:00:00]} 11. g4 {[%emt 0:00:03][%cal Bg2g4,Bg4g5][%mdl 32]} b5 {[%emt 0:00:01]} 12. g5 {[%emt 0:00:02]} Nh5 $1 {[%emt 0:00:01][%mdl 4] is more profitable than 12...b4 at the moment.} 13. Nd5 {[%emt 0:00:07] CPLX 2.7 29 (Kc1-b1) (=29)} Bxd5 {[%emt 0:00:05] EASY. B90: Sicilian Najdorf: Unusual White 6th moves, 6 Be3 Ng4 and 6 Be3 e5.} 14. exd5 {[%emt 0:00:00] RECAPT} f6 {[%emt 0:00:01][%cal Rf6g5] BESTDEEP} 15. gxf6 {[%emt 0:00:02] CPLX 2.5 0 (g5-g6) (=10)} Bxf6 {[%emt 0:00:12] RECAPT. The position is equal.} 16. Na5 {[%emt 0:00:07] CPLX 2.3 1 (Kc1-b1) (=8)} Qe8 {[%emt 0:00:27] BESTDEEP} 17. Kb1 {[%emt 0:00:03] CPLX 2.3 22 (Qd2-b4) (=10)} (17. Qb4 $5 {[%cal Rb4d6]}) 17... Bd8 {[%emt 0:00:40] CPLX 2.4} 18. Nb7 {[%emt 0:00:01] CPLX 2.5} Bc7 {[%emt 0:00:11] CPLX 2.6} 19. Qc3 {[%emt 0:00:02] CPLX 2.5} Qb8 {[%emt 0:01:13] BESTDEEP} 20. Qc6 {[%emt 0:00:03] CPLX 2.9} Rxf3 {[%emt 0:00:11] [#] EASY} 21. Bc1 $146 {[%emt 0:00:09] RELBLUND 206 (Be3-c5) (=29)} (21. Bc5 $11 {and White has nothing to worry.}) ({Predecessor:} 21. Bg1 Rf6 22. c4 bxc4 23. Bxc4 Nf4 24. Be3 a5 25. Rhf1 Rf7 26. a4 Nb6 27. Bb3 {½-½ (51) Hall,M (2594)-Daubenfeld,N (2510) ICCF email 2020}) 21... Nhf6 $19 {[%emt 0:00:48] Strongly threatening ...e4. CPLX 3.3=>BLUNDERREACT} 22. Bg2 $2 {[%emt 0:00:30] [#] This move loses the game for White. CPLX 3.1 177 (b2-b4) (=44)} (22. b4 $17) 22... e4 $1 {[%emt 0:01:22] Threatens to win with ...Ne5. DEEPSTRONG=>BLUNDERREACT} ({Worse is} 22... Rf2 23. Bh3 $11) 23. Bxf3 {[%emt 0:00:51][%cal Oc1f4] Hoping for Bf4! EASY} Ne5 {[%emt 0:00:01] EASY} 24. Bg2 {[%emt 0:03:14] And now Qc3 would win. MISS-Qc6-c3 10 (Qc6-c3) (=37)} Nxc6 {[%emt 0:00:10] EASY} 25. dxc6 {[%emt 0:00:00] RECAPT} d5 {[%emt 0:01:12] CPLX 3.8} 26. Bg5 {[%emt 0:00:11][%cal Bc1g5,Bg5f6,Bf6d4][%mdl 32] CPLX 3.8} Qe8 {[%emt 0:00:06] EASY} ({Weaker is} 26... Bxh2 27. Bxf6 Qg3 28. Bxe4 dxe4 29. Bc3 $17) 27. Bxf6 {[%emt 0:00:32][%cal Oh1g1] CPLX 4.0} Qxc6 {[%emt 0:00:01] CPLX 4.4} (27... gxf6 28. Rxd5 Qe6 29. Rd7 Qxc6 30. Bh3 $17) 28. Bd4 {[%emt 0:00:01] CPLX 4.6 123 (Bf6-c3) (=36)} Qxb7 {[%emt 0:00:10] EASY} 29. Bh3 {[%emt 0:00:01] [#] Black must now prevent Be6+. CPLX 3.3 0 (Rd1-d2) (=33)} Re8 {[%emt 0:00:16] Against Be6+. CPLX 3.4} 30. Rhg1 {[%emt 0:00:29] CPLX 3.4 104 (Bh3-d7) (=37)} Be5 {[%emt 0:00:05] CPLX 4.0} 31. Be3 {[%emt 0:00:17] CPLX 3.8 79 (Bd4-c5) (=40)} d4 {[%emt 0:01:25] BESTDEEP} 32. Bxd4 {[%emt 0:00:07] CPLX 3.9 45 (Be3-c1) (=40)} Bxd4 {[%emt 0:00:00] RECAPT} 33. Rxd4 {[%emt 0:00:00] RECAPT} Qb6 {[%emt 0:00:21] CPLX 3.2} 34. c3 {[%emt 0:00:04] CPLX 3.5 400 (Rd4-d1) (=54)} b4 {[%emt 0:01:06] ( -> ...bxc3). CPLX 3.3=>BLUNDERREACT} 35. Ka1 {[%emt 0:00:02] MISSDEEP-Rg1-g2 400 (Rg1-g2) (=69)} bxc3 {[%emt 0:00:06] DEEPSTRONG=>BLUNDERREACT} 36. bxc3 {[%emt 0:00:06] RECAPT} Rb8 {[%emt 0:00:15] Weighted Error Value: White=0.86/Black=0.00 (flawless)} 0-1

[Event "Julius Baer Generation Cup Prelims 2022"]
[Site "Online"]
[Date "2022.09.14"]
[Round "10.3"]
[White "Praggnanandhaa R"]
[Black "Le, Quang Liem"]
[Result "1/2-1/2"]
[ECO "C54"]
[WhiteElo "2676"]
[BlackElo "2728"]
[Annotator "TA"]
[PlyCount "118"]
[EventDate "2022.09.12"]
[EventType "tourn"]
[EventCountry "NET"]
[SourceTitle "playchess.com"]
[Source "ChessBase"]
[SourceQuality "1"]
[TimeControl "900+10"]

{[%evp 12,118,14,0,39,23,25,26,33,18,5,20,43,17,12,2,70,-19,-15,-68,-77,-69,-80,-113,-106,-157,-129,-146,-154,-156,-138,-140,-147,-190,-158,-181,-99,-98,-37,-13,-4,-4,0,0,0,-11,0,-20,0,0,104,105,105,91,132,109,118,30,50,42,105,19,20,20,43,43,40,30,51,0,0,-19,0,-8,-8,-19,-19,-19,-19,-41,-41,-41,-41,-48,-48,-48,-48,-48,0,0,0,-55,-56,-56,0,-56,0,-56,-56,-56,-56,-58,-72,-82,0,0,0,0,0]} 1. e4 {[%emt 0:00:00]} e5 {[%emt 0:00:00]} 2. Nf3 {[%emt 0:00:01]} Nc6 {[%emt 0:00:02]} 3. Bc4 {[%emt 0:00:02]} Nf6 {[%emt 0:00:02]} 4. d3 {[%emt 0:00:01]} Bc5 {[%emt 0:00:02]} 5. c3 {[%emt 0:00:01]} d6 {[%emt 0:00:01]} 6. Bg5 {[%emt 0:00:02][%cal Bc1g5,Bg5h4,Bh4g3][%mdl 32]} h6 {[%emt 0:00:03]} 7. Bh4 {[%emt 0:00:01] BESTDEEP} a5 $1 {[%emt 0:00:17][%mdl 4] CPLX 2.5 39 (g7-g5) (=39) 7...a5 is the recent fashion. C54: Giuoco Piano: 4 c3 Nf6, main lines with 5 d4 and 5 d3.} 8. O-O {[%emt 0:00:17] BESTDEEP} O-O {[%emt 0:00:21] BESTDEEP} 9. Nbd2 {[%emt 0:00:12]} Ba7 {[%emt 0:00:03] BESTDEEP. White has an edge.} 10. a3 {[%emt 0:02:06] CPLX 3.0 15 (h2-h3) (=4)} g5 {[%emt 0:00:38] BESTDEEP} 11. Bg3 {[%emt 0:00:03] EASY} Nh7 {[%emt 0:01:13] CPLX 2.9 23 (Ra8-b8) (=12)} 12. Kh1 {[%emt 0:00:05] CPLX 2.9 26 (b2-b4) (=7)} Kh8 {[%emt 0:01:06] BESTDEEP} 13. b4 {[%emt 0:02:52] BESTDEEP} h5 {[%emt 0:00:16] [#] RELBLUND 68 (f7-f5) (=19)} (13... f5 $11 14. h3 Nf6) 14. h4 $146 {[%emt 0:01:08] White is more active. RELBLUND 89 (b4-b5) (=16)} (14. b5 $14 Nb8 15. h4) ({Predecessor:} 14. b5 Ne7 15. Bxe5+ dxe5 16. Nxe5 Kg7 17. f4 g4 18. d4 f6 19. Nd3 f5 20. Ne5 {0-1 (34) Adhiban,B (2672)-Vidit,S (2727) Kolkata 2021}) 14... g4 $11 {[%emt 0:00:05] CPLX 2.8=>BLUNDERREACT} 15. Nh2 {[%emt 0:00:19] RELBLUND 53 (Nf3-g1) (=20)} (15. Ng1 $11) 15... f5 $1 $15 {[%emt 0:01:13] DEEPSTRONG} 16. exf5 {[%emt 0:00:06] BESTDEEP} Ne7 $1 {[%emt 0:00:19] DEEPSTRONG} 17. d4 {[%emt 0:02:54] CPLX 3.1 33 (Bc4-e6) (=20)} exd4 {[%emt 0:00:39] EASY} 18. cxd4 {[%emt 0:00:08] CPLX 3.1 51 (Nd2-e4) (=22)} (18. Ne4 $142) 18... Nxf5 {[%emt 0:00:05] CPLX 3.1 28 (Ba7xd4) (=13)} ({Stronger than} 18... Bxf5 19. f3 $17) 19. Bd3 {[%emt 0:00:34] CPLX 3.0 17 (d4-d5) (=22)} Bxd4 {[%emt 0:00:17] Strongly threatening ...axb4. CPLX 3.2} 20. Rc1 {[%emt 0:00:22] CPLX 3.4} axb4 {[%emt 0:00:04] CPLX 3.2} 21. axb4 {[%emt 0:00:07] RECAPT} Bb2 {[%emt 0:00:19] BESTDEEP} 22. Rc4 {[%emt 0:00:30] CPLX 3.4 43 (Rc1-c2) (=20)} Bg7 {[%emt 0:00:47] CPLX 3.2 32 (b7-b5) (=12)} 23. Qc2 {[%emt 0:01:13] CPLX 3.2 23 (Rc4-c1) (=21)} Be6 {[%emt 0:00:23] CPLX 3.2 82 (c7-c6) (=16)} ({Black should try} 23... c6 $19 {Threatens to win with ...Be6.} 24. Rf4 Nxg3+ 25. fxg3 Rxf4 26. Rxf4 Nf6) 24. Rxc7 $17 {[%emt 0:01:32] [#] EASY} Ra2 {[%emt 0:00:44] MISSDEEP-Nh7-f6 61 (Nh7-f6) (=19)} (24... Nf6 $1 $17 25. Qc1 Ra2) 25. Qc1 $15 {[%emt 0:00:05] CPLX 4.8} Bb2 {[%emt 0:02:33] BESTDEEP} ({Don't do} 25... Rxd2 26. Bxf5 Rxf5 27. Rxg7 Kxg7 28. Qxd2 $16) 26. Qc2 {[%emt 0:00:19] EASY} Be5 {[%emt 0:01:26] CPLX 4.4 4 (Nh7-f6) (=17)} 27. Qc1 {[%emt 0:01:14] BESTDEEP} Bb2 {[%emt 0:04:43] CPLX 4.8 0 (Ra2xd2) (=16)} 28. Qc2 {[%emt 0:00:13] EASY} Bg7 {[%emt 0:00:40] CPLX 4.4 11 (Nh7-f6) (=16)} 29. Qc1 {[%emt 0:00:05] CPLX 4.8} Nxg3+ {[%emt 0:00:57] CPLX 4.5 20 (Nh7-f6) (=16)} ({Don't take} 29... Rxd2 30. Bxf5 Rxf5 31. Rxg7 Kxg7 32. Qxd2 $14) (29... Nf6 {is interesting.} 30. Bxf5 Bxf5 31. Rd1 Ra1) 30. fxg3 {[%emt 0:00:08] RECAPT} Rxd2 {[%emt 0:00:00] [#] RELBLUND 104 (Nh7-f6) (=20)} 31. Rxg7 $1 $16 {[%emt 0:01:36] Really sharp! DEEPSTRONG=>BLUNDERREACT} Kxg7 {[%emt 0:00:43] RECAPT} (31... Rxd3 $2 32. Qh6 Rxf1+ 33. Nxf1 $18) 32. Qxd2 {[%emt 0:00:06] CPLX 5.4} Rxf1+ {[%emt 0:00:02] CPLX 4.0 41 (d6-d5) (=20)} 33. Nxf1 {[%emt 0:00:02] RECAPT} Qf6 {[%emt 0:00:02] CPLX 3.4} 34. Kh2 {[%emt 0:00:37] RELBLUND 88 (Qd2-c2) (=16)} (34. Qc2 $16) 34... Nf8 {[%emt 0:00:06] CPLX 2.9 20 (Qf6-e5) (=19)} 35. Ne3 {[%emt 0:00:09] EASY} d5 {[%emt 0:00:00] Prevents Be4. CPLX 2.6 63 (Qf6-d4) (=21)} (35... Qd4 $14) 36. Bb5 {[%emt 0:00:25] RELBLUND 86 (Qd2-c2) (=17)} ({Better is} 36. Qc2 $16) 36... Qe5 {[%emt 0:00:13] ...d4 is the strong threat. CPLX 2.7 1 (Nf8-g6) (=20)} 37. Nc2 {[%emt 0:00:19] Prevents d4. CPLX 3.1} Ng6 {[%emt 0:00:01] CPLX 2.9 23 (Be6-f5) (=20)} 38. Nd4 {[%emt 0:00:07] EASY} Bf7 {[%emt 0:00:13] CPLX 3.7} 39. Kg1 {[%emt 0:00:15] CPLX 3.3 10 (Qd2-c3) (=16)} Ne7 {[%emt 0:00:31] CPLX 2.7 21 (Qe5-f6) (=19)} 40. Ne2 {[%emt 0:00:16] CPLX 2.6 51 (Bb5-d7) (=17)} (40. Bd7 $14) 40... Nf5 $11 {[%emt 0:00:14] BESTDEEP} 41. Bd3 {[%emt 0:00:44] CPLX 3.2 19 (Qd2-g5) (=17)} Qe3+ {[%emt 0:00:08] BESTDEEP} 42. Qxe3 {[%emt 0:00:02] EASY} Nxe3 {[%emt 0:00:00][%mdl 4096] Endgame KBN-KBN. RECAPT} 43. Kf2 {[%emt 0:00:23] CPLX 2.0 11 (Ne2-f4) (=17)} Nd1+ {[%emt 0:00:01] CPLX 2.1} 44. Ke1 {[%emt 0:00:01] BESTDEEP} Nb2 {[%emt 0:00:04] CPLX 2.0} 45. Kd2 {[%emt 0:00:17] CPLX 2.0 22 (Bd3-b5) (=16)} Kf6 {[%emt 0:00:01] CPLX 2.0} 46. Kc3 {[%emt 0:00:07] BESTDEEP} Nxd3 {[%emt 0:00:09] CPLX 2.1} 47. Kxd3 $15 {[%emt 0:00:01] KB-KN. RECAPT} Ke5 {[%emt 0:00:00] CPLX 2.0} 48. Ke3 {[%emt 0:00:11] CPLX 2.0 0 (Ne2-d4) (=15)} Bg6 {[%emt 0:00:06] CPLX 2.0} 49. Nd4 {[%emt 0:00:04] CPLX 2.0} Be4 {[%emt 0:00:01] CPLX 2.0 48 (Bg6-f5) (=16)} (49... Bf5 $15 {was preferrable.}) 50. Ne2 $11 {[%emt 0:00:04] CPLX 2.1} Bg6 {[%emt 0:00:59] RELBLUND 0 (d5-d4) (=16)} (50... d4+ $11 51. Nxd4 Bxg2) 51. Nd4 $15 {[%emt 0:00:05] RELBLUND} Be8 {[%emt 0:00:05] BESTDEEP} 52. Kd3 {[%emt 0:00:14] CPLX 2.0} Ba4 {[%emt 0:00:13] CPLX 2.0 56 (Be8-d7) (=16)} (52... Bd7 $15) 53. Ke3 {[%emt 0:00:17] RELBLUND 56 (b4-b5) (=15)} ({White should play} 53. b5 $11) 53... Be8 {[%emt 0:00:15] CPLX 2.0 56 (Ba4-d7) (=17)} 54. Kd3 $1 {[%emt 0:00:04] RELBLUND} Bc6 {[%emt 0:00:15] DEEPSTRONG} 55. Ke3 {[%emt 0:00:07] CPLX 2.0} Bd7 {[%emt 0:00:02] CPLX 2.0} 56. Kd3 {[%emt 0:00:23] CPLX 2.0 2 (Nd4-b3) (=14)} Bf5+ {[%emt 0:00:14] DEEPSTRONG} 57. Ke3 {[%emt 0:00:09] [#] DEEPSTRONG} Bg6 {[%emt 0:00:02] MISSDEEP-Bf5-b1 82 (Bf5-b1) (=17)} (57... Bb1 $1 $17) 58. Ne2 $1 $11 {[%emt 0:00:07] CPLX 2.0=>BLUNDERREACT} Bf7 {[%emt 0:00:17] CPLX 2.0 0 (b7-b6) (=17)} 59. Nd4 {[%emt 0:00:05] CPLX 2.0} Be8 {[%emt 0:00:02] Whites escaped into a draw.  Weighted Error Value: White=0.17 (very precise) /Black=0.17 (very precise)} 1/2-1/2